Workbook

Sheet Regression - r(0)
B4: Today | C4: 2012-12-11
B5: Face Value | C5: 100
B7: Bond | C7: Maturity | D7: Price | E7: T-t (yrs) | F7: r | H7: SUMMARY OUTPUT
B8: RGKT1212 | C8: 2012-12-19 | D8: 99.98 | E8: =(DAYS360($C$4,C8,FALSE))/360 -> 0.02222222222 | F8: =(($C$5/D8)-1)*(1/E8) -> 0.00900180036
B9: RGKT1301 | C9: 2013-01-19 | D9: 99.91 | E9: =(DAYS360($C$4,C9,FALSE))/360 -> 0.1055555556 | F9: =(($C$5/D9)-1)*(1/E9) -> 0.008533996386 | H9: Regression Statistics
B10: RGKT1302 | C10: 2013-02-20 | D10: 99.815 | E10: 0.1916666667 | F10: 0.009670063531 | H10: Multiple R | I10: 0.2302716212
B11: RGKT1303 | C11: 2013-03-20 | D11: 99.75 | E11: 0.275 | F11: 0.009113693324 | H11: R Square | I11: 0.05302501955
B12: RGKT1306 | C12: 2013-06-19 | D12: 99.553 | E12: 0.5222222222 | F12: 0.008598007562 | H12: Adjusted R Square | I12: -0.2626333073
H13: Standard Error | I13: 0.000514719353
H14: Observations | I14: 5
B15: Hence
B16: r(0) | C16: 0.009106 | H16: ANOVA
I17: df | J17: SS | K17: MS | L17: F | M17: Significance F
H18: Regression | I18: 1 | J18: 4.450456725e-08 | K18: 4.450456725e-08 | L18: 0.1679823247 | M18: 0.7094211511
H19: Residual | I19: 3 | J19: 7.94808037e-07 | K19: 2.649360123e-07
H20: Total | I20: 4 | J20: 8.393126043e-07
I22: Coefficients | J22: Standard Error | K22: t Stat | L22: P-value | M22: Lower 95% | N22: Upper 95% | O22: Lower 95.0% | P22: Upper 95.0%
H23: Intercept | I23: 0.00910626152 | J23: 0.0003777346554 | K23: 24.10756172 | L23: 0.0001564325899 | M23: 0.007904141261 | N23: 0.01030838178 | O23: 0.007904141261 | P23: 0.01030838178
H24: X Variable 1 | I24: -1.526732429e-06 | J24: 3.725041682e-06 | K24: -0.4098564684 | L24: 0.7094211511 | M24: -1.338147757e-05 | N24: 1.032801271e-05 | O24: -1.338147757e-05 | P24: 1.032801271e-05

Sheet Estimating Parameters (Vasicek)
B3: Today | C3: 2012-12-11
B4: Face Value | C4: 100
B5: r(0) | C5: ='[1]Regression - r(0)'!C16 -> 0.009106
B7: Vasicek Model
B9: Parameters | C9: Initial Value | D9: Estimated value
B10: a | C10: 0.8 | D10: =F43 -> 0.2662455205
B11: b | C11: 0.2 | D11: =F44 -> 0.02477387702
B12: σ | C12: 0.2 | D12: 0.1956820873
B14: Bond | C14: Maturity | D14: Observed Price | E14: T-t (yrs) | F14: B | G14: A | H14: Calculated Price | I14: Error sq.
B15: RGKT1212 | C15: 2012-12-19 | D15: 99.98 | E15: =(DAYS360($C$3,C15,FALSE))/360 -> 0.02222222222 | F15: =((1-EXP(-$C$10*E15))/$C$10) -> 0.02202585673 | G15: =((-$C$11)*(E15-F15))+((($C$12)^2)/((2)*($C$10)*($C$10)))*(E15-2*F15+(1/(2*$C$10))*(1-EXP(-2*$C$10*E15))) -> -3.920090683e-05 | H15: =(EXP(G15-$C$5*F15))*100 -> 99.97602604 | I15: =(D15-H15)^2 -> 1.579237084e-05
B16: RGKT1301 | C16: 2013-01-19 | D16: 99.91 | E16: =(DAYS360($C$3,C16,FALSE))/360 -> 0.1055555556 | F16: =((1-EXP(-$C$10*E16))/$C$10) -> 0.1012216115 | G16: =((-$C$11)*(E16-F16))+((($C$12)^2)/((2)*($C$10)*($C$10)))*(E16-2*F16+(1/(2*$C$10))*(1-EXP(-2*$C$10*E16))) -> -0.0008594257373 | H16: =(EXP(G16-$C$5*F16))*100 -> 99.82204356 | I16: =(D16-H16)^2 -> 0.007736335796
B17: RGKT1302 | C17: 2013-02-20 | D17: 99.815 | E17: 0.1916666667 | F17: 0.1776953422 | G17: -0.002752356437 | H17: 99.56390863 | I17: 0.06304687625
B18: RGKT1303 | C18: 2013-03-20 | D18: 99.75 | E18: 0.275 | F18: 0.2468515025 | G18: -0.005511754749 | H18: 99.22704433 | I18: 0.27348263
B19: RGKT1306 | C19: 2013-06-19 | D19: 99.553 | E19: 0.5222222222 | F19: 0.4268643158 | G19: -0.01836931102 | H19: 97.79895076 | I19: 3.076688752
I20: =SUM(I15:I19) -> 3.420970387
B23: Microsoft Excel 14.0 Answer Report
B24: Worksheet: [Project.xlsx]Estimating Parameters (Vasicek)
B25: Report Created: 12/17/2012 9:15:41 PM
B26: Result: Solver has converged to the current solution. All Constraints are satisfied.
B27: Solver Engine
C28: Engine: GRG Nonlinear
C29: Solution Time: 0.063 Seconds.
C30: Iterations: 7 Subproblems: 0
B31: Solver Options
C32: Max Time Unlimited, Iterations Unlimited, Precision 0.000001, Use Automatic Scaling
C33: Convergence 0.0001, Population Size 100, Random Seed 0, Derivatives Forward, Require Bounds
C34: Max Subproblems Unlimited, Max Integer Sols Unlimited, Integer Tolerance 1%
B36: Objective Cell (Min)
C37: Cell | D37: Name | E37: Original Value | F37: Final Value
C38: $I$20 | D38: Error sq. | E38: 3.420970387 | F38: 0.0001220426268
B41: Variable Cells
C42: Cell | D42: Name | E42: Original Value | F42: Final Value | G42: Integer
C43: $C$10 | D43: a Initial Value | E43: 0.8 | F43: 0.2662455205 | G43: Contin
C44: $C$11 | D44: b Initial Value | E44: 0.2 | F44: 0.02477387702 | G44: Contin
C45: $C$12 | D45: σ Initial Value | E45: 0.2 | F45: 0.1956820873 | G45: Contin
B48: Constraints
C49: Cell | D49: Name | E49: Cell Value | F49: Formula | G49: Status | H49: Slack
C50: $C$10 | D50: a Initial Value | E50: 0.2662455205 | F50: $C$10>=0 | G50: Not Binding | H50: 0.2662455205
C51: $C$11 | D51: b Initial Value | E51: 0.02477387702 | F51: $C$11>=0 | G51: Not Binding | H51: 0.02477387702
C52: $C$12 | D52: σ Initial Value | E52: 0.1956820873 | F52: $C$12>=0 | G52: Not Binding | H52: 0.1956820873

Sheet Estimating parameters (CIR)
B2: Today | C2: 2012-12-11
B3: Face Value | C3: 100
B4: r(0) | C4: ='[1]Regression - r(0)'!C16 -> 0.009106
B6: CIR
B8: Parameters | C8: Initial value | D8: Estimated value
B9: a | C9: 0.8 | D9: =F43 -> 0.1636597217
B10: b | C10: 0.2 | D10: =F44 -> 6.082714308e-08
B11: σ | C11: 0.2 | D11: 0.6039500554
B12: ϒ | C12: =SQRT((C9^2)+2*(C11^2)) -> 0.8485281374
B14: Bond | C14: Maturity | D14: Observed Price | E14: T-t(yrs) | F14: B | G14: A | H14: Calculated Price | I14: Error sq
B15: RGKT1212 | C15: 2012-12-19 | D15: 99.98 | E15: =(DAYS360($C$2,C15,FALSE))/360 -> 0.02222222222 | F15: =(2*(EXP($C$12*E15)-1))/((($C$12+$C$9)*(EXP($C$12*E15))+($C$12-$C$9))) -> 0.02202578486 | G15: =(2*$C$9*$C$10/($C$11^2))*LN((2*$C$12*EXP(($C$9+$C$12)*E15/2))/(($C$12+$C$9)*(EXP($C$12*E15))+($C$12-$C$9))) -> -3.927303488e-05 | H15: =EXP(G15-F15*$C$4)*100 -> 99.97601889 | I15: =(H15-D15)^2 -> 1.584921494e-05
B16: RGKT1301 | C16: 2013-01-19 | D16: 99.91 | E16: =(DAYS360($C$2,C16,FALSE))/360 -> 0.1055555556 | F16: =(2*(EXP($C$12*E16)-1))/((($C$12+$C$9)*(EXP($C$12*E16))+($C$12-$C$9))) -> 0.1012144038 | G16: =(2*$C$9*$C$10/($C$11^2))*LN((2*$C$12*EXP(($C$9+$C$12)*E16/2))/(($C$12+$C$9)*(EXP($C$12*E16))+($C$12-$C$9))) -> -0.0008667578542 | H16: =EXP(G16-F16*$C$4)*100 -> 99.8213182 | I16: =(H16-D16)^2 -> 0.007864460804
B17: RGKT1302 | C17: 2013-02-20 | D17: 99.815 | E17: 0.1916666667 | F17: =(2*(EXP($C$12*E17)-1))/((($C$12+$C$9)*(EXP($C$12*E17))+($C$12-$C$9))) -> 0.1776550383 | G17: =(2*$C$9*$C$10/($C$11^2))*LN((2*$C$12*EXP(($C$9+$C$12)*E17/2))/(($C$12+$C$9)*(EXP($C$12*E17))+($C$12-$C$9))) -> -0.002793946271 | H17: 99.55980441 | I17: =(H17-D17)^2 -> 0.06512478989
B18: RGKT1303 | C18: 2013-03-20 | D18: 99.75 | E18: 0.275 | F18: =(2*(EXP($C$12*E18)-1))/((($C$12+$C$9)*(EXP($C$12*E18))+($C$12-$C$9))) -> 0.2467400287 | G18: =(2*$C$9*$C$10/($C$11^2))*LN((2*$C$12*EXP(($C$9+$C$12)*E18/2))/(($C$12+$C$9)*(EXP($C$12*E18))+($C$12-$C$9))) -> -0.005628418107 | H18: 99.21556956 | I18: =(H18-D18)^2 -> 0.2856158957
B19: RGKT1306 | C19: 2013-06-19 | D19: 99.553 | E19: 0.5222222222 | F19: =(2*(EXP($C$12*E19)-1))/((($C$12+$C$9)*(EXP($C$12*E19))+($C$12-$C$9))) -> 0.4262347695 | G19: =(2*$C$9*$C$10/($C$11^2))*LN((2*$C$12*EXP(($C$9+$C$12)*E19/2))/(($C$12+$C$9)*(EXP($C$12*E19))+($C$12-$C$9))) -> -0.01905728555 | H19: 97.73225097 | I19: =(H19-D19)^2 -> 3.315127028
I20: =SUM(I15:I19) -> 3.673748024
B23: Microsoft Excel 14.0 Answer Report
B24: Worksheet: [Project.xlsx]Estimating parameters (CIR)
B25: Report Created: 12/17/2012 7:59:12 PM
B26: Result: Solver has converged to the current solution. All Constraints are satisfied.
B27: Solver Engine
C28: Engine: GRG Nonlinear
C29: Solution Time: 0.015 Seconds.
C30: Iterations: 6 Subproblems: 0
B31: Solver Options
C32: Max Time Unlimited, Iterations Unlimited, Precision 0.000001, Use Automatic Scaling
C33: Convergence 0.0001, Population Size 100, Random Seed 0, Derivatives Forward, Require Bounds
C34: Max Subproblems Unlimited, Max Integer Sols Unlimited, Integer Tolerance 1%
B36: Objective Cell (Min)
C37: Cell | D37: Name | E37: Original Value | F37: Final Value
C38: $I$20 | D38: Error sq | E38: 3.673748024 | F38: 0.0002576976162
B41: Variable Cells
C42: Cell | D42: Name | E42: Original Value | F42: Final Value | G42: Integer
C43: $C$9 | D43: a Initial value | E43: 0.8 | F43: 0.1636597217 | G43: Contin
C44: $C$10 | D44: b Initial value | E44: 0.2 | F44: 6.082714308e-08 | G44: Contin
C45: $C$11 | D45: σ Initial value | E45: 0.2 | F45: 0.6039500554 | G45: Contin
B48: Constraints
C49: Cell | D49: Name | E49: Cell Value | F49: Formula | G49: Status | H49: Slack
C50: $C$10 | D50: b Initial value | E50: 6.082714308e-08 | F50: $C$10>=0 | G50: Binding | H50: 0
C51: $C$11 | D51: σ Initial value | E51: 0.6039500554 | F51: $C$11>=0 | G51: Not Binding | H51: 0.6039500554
C52: $C$9 | D52: a Initial value | E52: 0.1636597217 | F52: $C$9>=0 | G52: Not Binding | H52: 0.1636597217

Sheet VBA
D2: OPTION PRICES ON ZERO -COUPON BONDS AND COUPONS BOND
D4: INPUTS
D5: Option type(c or p)
D6: Mean reversion rate(a) | E6: 0.05 | Y6: 1
D7: Mean reversion(b) | E7: 0.0045 | Y7: =IF(Y6=1,"c","p") -> c
D8: Volatilité(v) | E8: 0.03 | Y8: call
D9: Interest rate(r) | E9: 0.08 | Y9: put
D10: Bond time to maturity(S) | E10: 3
D11: Option time to maturity(T) | E11: 2
D12: Strike price(K) | E12: 92
D13: Face value(L) | E13: 100
D14: Coupon value | E14: 100
D15: Coupon type(year or semiannual) | E15: 0.5
D16: OUTPUTS
E17: Vasicek Model | G17: Cox-Ingersoll-Ross (CIR)
D18: Zero coupon bond Price | E18: =Vasicek(E6,E7,E8,E9,E10,0)*E13 -> 78.77953254 | G18: =CIR(E6,E7,E8,E9,E10)*E13 -> 78.5173385
D19: Zero coupon bond option price | E19: =VasicekZOption(Y7,E6,E7,E8,E9,E10,E11,E12,E13,0) -> 1.429468754
D20: Coupon bond option price | E20: =VasicekBondOptionValue(Y7,E6,E7,E8,E9,E10,E11,E12,E13,E14,E15) -> 3.128125166
J30: T | K30: Vasicek Model | L30: Cox-Ingersoll-Ross (CIR)
J31: 0 | K31: =Vasicek($E$6,$E$7,$E$8,$E$9,J31,0) -> 1 | L31: =CIR($E$6,$E$7,$E$8,$E$9,J31) -> 1
J32: 1 | K32: =Vasicek($E$6,$E$7,$E$8,$E$9,J32,0) -> 0.9230227647 | L32: =CIR($E$6,$E$7,$E$8,$E$9,J32) -> 0.9229000776
J33: 2 | K33: 0.8522686974 | L33: 0.851395813
J34: 3 | K34: 0.7877953254 | L34: 0.785173385
J35: 4 | K35: 0.7294526568 | L35: 0.7239152461
J36: 5 | K36: 0.6769555226 | L36: 0.6673059321
J37: 6 | K37: 0.6299383004 | L37: 0.6150364953
J38: 7 | K38: 0.5879949504 | L38: 0.5668077897
J39: 8 | K39: 0.5507073076 | L39: 0.5223328114
J40: 9 | K40: 0.5176642949 | L40: 0.4813382735
J41: 10 | K41: 0.4884743209 | L41: 0.4435655676
J42: 11 | K42: 0.4627726982 | L42: 0.4087712437
J43: 12 | K43: 0.440225524 | L43: 0.3767271151
J44: 13 | K44: 0.4205311221 | L44: 0.3472200815
J45: 14 | K45: 0.4034198659 | L45: 0.3200517407
J46: 15 | K46: 0.3886529787 | L46: 0.2950378513
J47: 16 | K47: 0.3760207377 | L47: 0.2720076922
J48: 17 | K48: 0.3653403772 | L48: 0.250803357
J49: 18 | K49: 0.3564538927 | L49: 0.2312790134
J50: 19 | K50: 0.3492258783 | L50: 0.2133001481
J51: 20 | K51: 0.3435414786 | L51: 0.196742817
J52: 21 | K52: 0.339304506 | L52: 0.1814929099
J53: 22 | K53: 0.336435745 | L53: 0.1674454411
J54: 23 | K54: 0.3348714564 | L54: 0.1545038714
J55: 24 | K55: 0.3345620779 | L55: 0.1425794641
J56: 25 | K56: 0.3354711157 | L56: 0.1315906795
J57: 26 | K57: 0.3375742174 | L57: 0.1214626064
J58: 27 | K58: 0.3408584132 | L58: 0.1121264325
J59: 28 | K59: 0.3453215161 | L59: 0.103518952
J60: 29 | K60: 0.350971667 | L60: 0.09558210904
J61: 30 | K61: 0.357827017 | L61: 0.08826257614

Sheet term
